bitfinex/quotes_ETHUSD_20250602
["timestamp","ask_amount","ask_price","bid_price","bid_amount"]
[1748886670200,0.7914,2548.6,2548.3,3.92411083]
[1748886670403,0.7914,2548.6,2548.4,3.92391463]
[1748886670669,0.7914,2548.6,2548.3,3.9241022]
[1748886670894,2.22623719,2548.6,2548.3,3.9241022]
[1748886672914,0.7914,2548.6,2548.1,0.03924131]
[1748886673078,0.97244738,2548.9,2548.8,3.92341494]
[1748886673079,0.0208,2548.9,2548.8,3.92341494]
[1748886673472,0.0208,2548.9,2548.7,3.92349003]
[1748886674103,0.0208,2548.9,2548.5,3.92377459]
[1748886674411,1.43414967,2548.9,2548.6,3.92361145]
[1748886675120,1.43414967,2548.9,2548.8,3.92341494]
[1748886675294,1.43414967,2548.9,2548.7,3.92348476]
[1748886675939,1.43414967,2548.9,2548.7,3.92350542]
[1748886676821,1.43414967,2548.9,2548.8,3.92341494]
[1748886677121,1.43414967,2548.9,2548.7,3.92348111]
[1748886679631,0.88871579,2548.8,2548.5,3.92380893]
[1748886679832,0.88871579,2548.8,2548.6,3.92370036]
[1748886680030,0.88871579,2548.8,2548.7,3.92356887]
[1748886680187,0.0208,2548.9,2548.8,3.92341494]
[1748886681627,0.0208,2548.9,2548.7,3.92349663]
[1748886681989,0.0208,2548.9,2548.8,3.92341494]
[1748886683003,0.0208,2548.9,2548.8,4.73884667]
[1748886683543,0.0208,2548.9,2548.8,4.69961494]
[1748886683730,0.0208,2548.9,2548.8,6.4423261]
[1748886684100,0.0208,2548.9,2548.8,3.92341494]
[1748886686753,0.0208,2548.9,2548.7,3.92351736]
[1748886686958,5.41637183,2548.8,2548.7,3.92356887]
[1748886687511,0.0208,2548.9,2548.8,3.92341494]
[1748886688507,0.0208,2548.9,2548.8,5.18276255]
[1748886690952,0.0208,2548.9,2548.8,5.93936255]
[1748886691247,0.0208,2548.9,2548.8,6.31333804]
[1748886691651,0.0208,2548.9,2548.8,5.93936255]
[1748886691816,0.0208,2548.9,2548.8,6.3133371]
[1748886692011,0.0208,2548.9,2548.8,13.97858757]
[1748886692250,0.0208,2548.9,2548.8,14.31332451]
[1748886695167,0.0208,2548.9,2548.8,14.31330672]
[1748886697664,0.0208,2548.9,2548.8,23.12330672]
[1748886698757,0.0208,2548.9,2548.8,23.12223783]
[1748886701072,0.0208,2548.9,2548.8,18.37223783]
[1748886701443,0.0208,2548.9,2548.8,14.31323783]
[1748886701647,0.0208,2548.9,2548.8,18.37123783]
[1748886702044,0.0208,2548.9,2548.8,3.92341494]
[1748886710187,0.0208,2548.9,2548.8,3.96264379]
[1748886710574,0.0208,2548.9,2548.8,3.92341494]
[1748886710768,0.0208,2548.9,2548.8,3.9626438]
[1748886710968,0.0208,2548.9,2548.8,3.92341494]
[1748886711673,0.0208,2548.9,2548.8,3.96264382]
[1748886712089,0.0208,2548.9,2548.8,3.92341494]
[1748886713578,0.0208,2548.9,2548.8,5.20076621]
[1748886713992,0.0208,2548.9,2548.8,5.23999374]
[1748886714190,0.0208,2548.9,2548.8,6.0373905]
[1748886715488,0.0208,2548.9,2548.8,5.99816621]
[1748886717696,0.0208,2548.9,2548.8,10.04816621]
[1748886718190,0.0208,2548.9,2548.8,18.04816621]
[1748886720178,0.0208,2548.9,2548.8,17.25076621]
[1748886720896,0.0208,2548.9,2548.8,13.20076621]
[1748886721097,0.0208,2548.9,2548.8,11.92341494]
[1748886723384,0.0208,2548.9,2548.8,12.75351494]
[1748886727128,0.0208,2548.9,2548.8,16.79451494]
[1748886736533,0.0208,2548.9,2548.8,21.54451494]
[1748886737230,0.0208,2548.9,2548.8,17.50351494]
[1748886737427,0.0208,2548.9,2548.8,20.71441494]
[1748886737929,0.0208,2548.9,2548.8,21.50401494]
[1748886739613,0.0208,2548.9,2548.8,17.46301494]
[1748886739799,0.0208,2548.9,2548.8,21.50401494]
[1748886744653,0.0208,2548.9,2548.8,22.05401494]
[1748886744983,0.02,2549.9,2549.8,3.92187622]
[1748886745178,0.02,2549.9,2549.8,20.61804708]
[1748886745348,0.02,2549.9,2549.8,21.3916401]
[1748886746437,0.02,2549.9,2549.8,16.77567622]
[1748886747072,0.02,2549.9,2549.8,12.73467622]
[1748886747271,0.02,2549.9,2549.8,16.77567622]
[1748886749271,0.02,2549.9,2549.8,16.77467622]
[1748886750176,0.02,2549.9,2549.8,11.92187622]
[1748886750680,0.02,2549.9,2549.8,15.96187622]
[1748886751799,0.7855,2549.9,2549.8,11.92187622]
[1748886751976,0.7855,2549.9,2549.8,3.92187622]
[1748886752155,1.80333185,2549.9,2549.8,3.92187622]
[1748886753251,0.7855,2549.9,2549.8,3.92187622]
[1748886754003,0.02,2549.9,2549.8,3.96109147]
[1748886754794,0.02,2549.9,2549.8,7.96187622]
[1748886758480,0.02,2549.9,2549.8,3.92187622]
[1748886761207,0.8506,2549.9,2549.8,3.92187622]
[1748886763421,0.8506,2549.9,2549.6,3.92211997]
[1748886763422,0.8306,2549.8,2549.6,3.92211997]
[1748886763905,0.8306,2549.8,2549.7,3.92203004]
[1748886765365,0.8306,2549.8,2549.1,8.0]
[1748886765900,0.8306,2549.8,2549.7,3.92203004]
[1748886769901,5.44665255,2549.8,2549.7,3.92203004]
[1748886771119,0.8306,2549.8,2549.7,3.92203004]
[1748886772632,1.37726525,2549.8,2549.6,3.92208324]
[1748886772848,0.8275,2549.6,2549.1,11.92293458]
[1748886773132,0.8275,2549.6,2549.4,3.92236553]
[1748886773346,0.8275,2549.6,2549.5,3.92233771]
[1748886773499,1.42652178,2549.6,2549.5,3.92233771]
[1748886773834,0.8275,2549.6,2549.5,3.92233771]
[1748886774179,0.8275,2549.6,2549.4,3.92241927]
[1748886774180,5.44355255,2549.6,2549.4,3.92241927]
[1748886774410,0.8275,2549.4,2549.3,3.92252375]
[1748886774578,5.44355255,2549.4,2549.3,3.92252375]
[1748886776136,5.44355255,2549.4,2548.6,0.8146]
[1748886776137,5.44355255,2549.4,2549.0,3.92304201]
[1748886776341,0.8068,2549.2,2549.1,3.9228403]
[1748886776622,4.98426746,2549.6,2549.0,3.92307741]
[1748886776623,0.8068,2549.6,2549.0,3.92307741]
[1748886776917,0.8068,2549.6,2549.5,3.92233771]
[1748886777120,0.7568,2549.6,2549.3,3.9225643]
[1748886777328,0.7568,2549.6,2549.4,3.92248452]
[1748886777623,0.7568,2549.6,2548.7,0.8004]
[1748886777624,0.7568,2549.6,2549.3,3.92257502]
[1748886777924,4.61605255,2549.4,2549.3,3.92257502]
[1748886778324,5.15333781,2549.4,2548.6,4.75]
[1748886778625,0.53728526,2549.4,2549.1,3.92285027]
[1748886778932,4.61605255,2549.2,2549.1,3.92295319]
[1748886780224,5.37295255,2549.2,2549.1,3.92295319]
[1748886780429,5.96397633,2549.2,2549.0,3.92301606]
[1748886780630,0.7569,2549.1,2548.8,3.92338427]
[1748886780800,0.7569,2548.8,2548.4,3.9239457]
[1748886781008,4.61605255,2548.5,2548.4,3.9239457]
[1748886783069,5.39655255,2548.5,2548.4,3.9239457]
[1748886783641,5.39655255,2548.5,2548.3,3.9241093]
[1748886783642,5.81616848,2548.5,2548.3,3.9241093]
[1748886785679,6.21662362,2548.5,2548.4,3.92403076]
[1748886786324,6.21662362,2548.5,2548.3,3.92411999]
[1748886786526,4.61605255,2548.4,2548.3,3.92411999]
[1748886787072,4.61605255,2548.4,2548.2,3.92425344]
[1748886787278,5.74811491,2548.4,2548.3,3.92418475]
[1748886787876,5.74811491,2548.4,2548.2,3.92423298]
[1748886788232,5.74811491,2548.4,2548.3,3.92418475]
[1748886788833,5.74811491,2548.4,2548.1,3.92444289]
[1748886789040,5.74811491,2548.4,2548.3,3.92418475]
[1748886789239,5.74811491,2548.4,2548.2,3.92426617]
[1748886789439,5.74811491,2548.4,2548.3,3.92418475]
[1748886789640,5.74811491,2548.4,2548.2,3.92421363]
[1748886789856,5.74811491,2548.4,2547.8,3.92484436]
[1748886790276,5.74811491,2548.4,2548.2,3.92425477]
[1748886791082,5.74811491,2548.4,2548.2,3.92433874]
[1748886794280,5.74811491,2548.4,2548.3,3.92418475]
[1748886794482,5.74811491,2548.4,2548.2,3.92418547]
[1748886797387,5.74811491,2548.4,2548.2,3.92433874]
[1748886797588,4.61605255,2548.4,2548.3,3.92418475]
[1748886798146,4.61605255,2548.4,2547.6,4.74016299]
[1748886798147,0.36791519,2548.4,2548.1,3.92449275]
[1748886798511,3.9221423,2549.7,2548.1,3.92449275]
[1748886798512,5.00304349,2549.0,2548.9,3.92326101]
[1748886798799,0.38699094,2549.0,2548.9,3.92326101]
[1748886799147,5.67705255,2549.1,2549.0,3.9231071]
[1748886800859,6.04486059,2549.1,2549.0,3.9231071]
[1748886801210,5.67705255,2549.1,2549.0,3.9231071]
[1748886805019,5.67705255,2549.1,2549.0,3.8134071]
[1748886805518,5.67705255,2549.1,2548.6,0.7512]
[1748886805720,4.61605255,2548.8,2548.6,0.7512]
[1748886805896,4.61605255,2548.8,2548.7,3.92352039]
[1748886807149,4.61605255,2549.3,2549.1,3.92295319]
[1748886807312,4.61605255,2549.3,2549.2,3.9227993]
[1748886807941,4.61605255,2549.5,2549.2,3.9227993]
[1748886808139,4.61605255,2549.5,2549.4,3.92249156]
[1748886808806,1.081,2549.9,2549.8,3.92187622]
[1748886808807,0.02,2549.9,2549.8,3.92187622]
[1748886809738,0.56134525,2549.9,2549.6,3.92211675]
[1748886809913,4.61605255,2549.7,2549.6,3.92211675]
[1748886810338,0.02,2549.9,2549.8,3.92187622]
[1748886810637,4.63605255,2549.9,2549.8,3.92187622]
[1748886812632,4.63605255,2549.9,2549.6,3.92205626]
[1748886812848,4.61605255,2549.7,2549.6,3.92205626]
[1748886813009,0.815,2549.6,2549.5,3.92226567]
[1748886813332,0.815,2549.6,2549.3,3.9225412]
[1748886813511,4.61605255,2549.4,2549.3,3.92264543]
[1748886815916,2.35060525,2549.8,2549.0,0.8171]
[1748886816147,0.02,2549.9,2549.7,3.92203004]
[1748886816352,0.02,2549.9,2549.8,3.92187622]
[1748886816763,0.02,2549.9,2549.8,4.69597622]
[1748886824886,0.02,2549.9,2549.8,3.92187622]
[1748886826184,0.02,2549.9,2549.8,4.72227622]
[1748886830398,0.02,2549.9,2549.8,3.92187622]
[1748886831269,0.02,2549.9,2549.8,4.78852646]
[1748886831465,0.02,2549.9,2549.8,3.92187622]
[1748886832005,0.02,2549.9,2549.8,4.68897622]
[1748886832310,0.02,2549.9,2549.8,17.4781875]
[1748886832466,0.02,2549.9,2549.8,17.98897622]
[1748886833278,0.02,2549.9,2549.8,17.43897622]
[1748886833484,0.02,2549.9,2549.8,19.43501097]
[1748886833668,0.02,2549.9,2549.8,23.47501097]
[1748886841110,0.02,2549.9,2549.8,19.43501097]
[1748886841317,0.02,2549.9,2549.8,17.43897622]
[1748886843166,0.02,2549.9,2549.8,12.68897622]
[1748886847871,0.02,2549.9,2549.8,11.92187622]
[1748886848019,0.02,2549.9,2549.8,3.92187622]
[1748886849466,0.8361,2549.9,2549.6,3.92211583]
[1748886849753,0.8361,2549.9,2549.4,8.67242515]
[1748886849754,4.61605255,2549.7,2549.4,4.75]
[1748886849956,5.45215255,2549.9,2549.8,3.92187622]
[1748886850834,5.45215255,2549.9,2549.7,3.9219395]
[1748886851037,5.45215255,2549.9,2549.4,8.67249005]
[1748886851235,5.45215255,2549.9,2549.8,3.92187622]
[1748886851558,5.99736781,2549.9,2549.8,3.92187622]
[1748886853385,5.45215255,2549.9,2549.8,3.92187622]
[1748886853989,0.02,2549.9,2549.8,3.92187622]
[1748886863179,0.02,2549.9,2549.8,3.96109003]
[1748886863379,0.02,2549.9,2549.8,3.92187622]
[1748886866784,0.819,2549.9,2549.8,3.92187622]
[1748886867575,0.02,2549.9,2549.8,3.92187622]
[1748886868077,0.7712,2549.9,2549.8,3.92187622]
[1748886870300,0.02,2549.9,2549.8,3.92187622]
[1748886872982,0.02,2549.9,2549.8,13.5539774]
[1748886873201,0.02,2549.9,2549.8,17.55276371]
[1748886878084,0.02,2549.9,2549.8,12.70626371]
[1748886878282,0.02,2549.9,2549.8,13.52866371]
[1748886883016,0.02,2549.9,2549.8,17.56666371]
[1748886884420,0.02,2549.9,2549.8,12.70626371]
[1748886887817,0.02,2549.9,2549.8,11.92187622]
[1748886888420,0.02,2549.9,2549.8,12.68967622]
[1748886889446,0.02,2549.9,2549.8,11.92187622]
[1748886891752,0.02,2549.9,2549.8,12.67237622]
[1748886893413,0.02,2549.9,2549.8,17.42237622]
[1748886893612,0.02,2549.9,2549.8,16.67187622]
[1748886894512,0.02,2549.9,2549.8,20.70987622]
[1748886897430,0.02,2549.9,2549.8,16.67187622]
[1748886899557,0.02,2549.9,2549.8,11.92187622]
[1748886901927,0.02,2549.9,2549.8,12.72437622]
[1748886903471,0.02,2549.9,2549.8,11.92187622]
[1748886903673,0.02,2549.9,2549.8,15.95887622]
[1748886906366,0.02,2549.9,2549.8,11.92187622]
[1748886906536,0.8162,2549.9,2549.8,11.92187622]
[1748886907255,0.8162,2549.9,2549.8,3.92187622]
[1748886908434,0.02,2549.9,2549.8,4.70626371]
[1748886909532,0.02,2549.9,2549.8,3.92187622]
[1748886928513,0.8499,2549.9,2549.8,3.92187622]
[1748886931423,0.8499,2549.9,2549.7,3.92196338]
[1748886931728,0.8499,2549.9,2549.8,3.92187622]
[1748886933549,0.02,2549.9,2549.8,3.92187622]
[1748886933836,0.02,2549.9,2549.8,5.92678574]
[1748886935000,0.02,2549.9,2549.8,13.92678574]
[1748886935407,0.02,2549.9,2549.8,14.47678574]
[1748886936021,0.02,2549.9,2549.8,19.22678574]
[1748886936943,0.02,2549.9,2549.8,23.84283829]
[1748886937145,0.02,2550.9,2549.8,23.84283829]
[1748886937146,0.02,2550.9,2550.8,3.92033871]
[1748886937450,0.02,2550.9,2550.8,3.95953755]
[1748886937809,0.02,2550.9,2550.8,3.92033871]
[1748886945746,0.787,2550.9,2550.8,3.92033871]
[1748886949049,0.02,2550.9,2550.8,3.92033871]
[1748886949645,0.02,2550.9,2550.8,4.70441926]
[1748886952151,0.02,2550.9,2550.8,3.92033871]
[1748886958798,0.02,2550.9,2550.8,3.95953931]
[1748886959910,0.02,2550.9,2550.8,11.95953931]
[1748886960065,0.02,2550.9,2550.8,11.92033871]
[1748886960267,0.02,2550.9,2550.8,15.95333871]
[1748886960465,0.02,2550.9,2550.8,17.23151444]
[1748886963775,0.02,2550.9,2550.8,22.64986699]
[1748886963981,0.02,2550.9,2550.8,23.19986699]
[1748886964575,0.02,2550.9,2550.8,19.16686699]
[1748886964791,0.02,2550.9,2550.8,23.19986699]
[1748886965195,0.02,2551.9,2551.8,3.91880241]
[1748886965412,0.02,2551.9,2551.8,18.73568265]
[1748886965569,0.02,2551.9,2551.8,26.63292324]
[1748886965791,0.025,2552.0,2551.9,13.25364884]
[1748886966008,0.025,2552.0,2551.9,21.15088943]
[1748886966193,0.02,2552.9,2552.8,3.91726731]
[1748886966395,0.02,2552.9,2552.8,22.14994914]
[1748886966610,0.02,2552.9,2552.8,18.11694914]
[1748886966771,0.02,2552.9,2552.8,13.50089659]
[1748886967105,0.02,2552.9,2552.8,17.53389659]
[1748886967472,0.02,2552.9,2552.8,12.71729659]
[1748886967677,0.02,2552.9,2552.8,16.75029659]
[1748886967978,0.02,2552.9,2552.8,12.71729659]
[1748886968207,0.02,2552.9,2552.8,11.91726731]
[1748886968413,0.02,2552.9,2552.8,3.91726731]
[1748886970109,0.02,2552.9,2552.8,3.95643528]
[1748886970424,0.02,2552.9,2552.8,3.91726731]
[1748886971170,0.02,2552.9,2552.8,3.9564347]
[1748886971909,0.02,2552.9,2552.8,3.91726731]
[1748886972318,0.7969,2552.9,2552.8,3.91726731]
[1748886979611,0.7969,2552.9,2552.2,8.0]
[1748886979812,0.7969,2552.9,2551.6,4.30576903]
[1748886980112,0.7969,2552.9,2550.1,0.02]
[1748886980113,9.37632638,2552.5,2551.5,0.8082]
[1748886980313,0.7752,2552.4,2552.1,3.91824207]
[1748886980521,0.7752,2552.1,2551.2,3.91960901]
[1748886980680,0.7752,2552.1,2551.7,3.91885694]
[1748886981015,0.7752,2552.1,2551.8,3.91870681]
[1748886981217,1.01515264,2552.0,2551.9,3.91864884]
[1748886981523,0.7752,2552.1,2552.0,3.91849529]
[1748886981680,0.7752,2552.1,2551.9,3.91864884]
[1748886981681,1.15724606,2552.1,2551.9,3.91856275]
[1748886982332,0.7752,2552.1,2551.9,3.91856275]
[1748886982491,0.7752,2552.1,2551.1,12.03]
[1748886982688,2.28776781,2552.1,2551.8,3.91871225]
[1748886983193,2.28776781,2552.1,2551.8,3.91877402]
[1748886984026,2.28776781,2552.1,2551.9,3.91863667]
[1748886984394,2.28776781,2552.1,2552.0,3.91849529]
[1748886984597,0.7752,2552.1,2552.0,3.91849529]
[1748886985229,0.7752,2552.1,2551.5,0.8302]
[1748886985390,0.7752,2552.1,2552.0,3.91849529]
[1748886986326,0.7752,2552.1,2551.1,0.8302]
[1748886986528,0.7752,2552.1,2551.8,3.9187967]
[1748886986731,0.5075911,2552.0,2551.7,3.91886879]
[1748886987102,0.5075911,2552.0,2551.7,3.91887744]
[1748886987738,0.5075911,2552.0,2551.8,3.91880039]
[1748886988108,0.7752,2552.1,2552.0,3.91849529]
[1748886988299,0.7752,2552.1,2551.9,3.91858033]
[1748886988636,0.7752,2552.1,2551.7,3.91889154]
[1748886988812,0.7752,2552.1,2551.8,3.91876478]
[1748886989204,3.91854057,2552.0,2551.6,3.9190116]
[1748886989405,0.8314,2551.8,2551.5,3.91922618]
[1748886990014,0.8314,2551.8,2551.6,3.91907184]
[1748886991613,0.8314,2551.8,2551.7,3.91895599]
[1748886992615,0.8314,2551.8,2551.6,3.91902559]
[1748886994052,0.8314,2551.8,2551.7,3.91895599]
[1748886994353,2.30221004,2551.8,2551.7,3.91895599]
[1748886995253,2.30221004,2551.8,2551.6,3.91903788]
[1748886996053,2.30221004,2551.8,2551.7,3.91895599]
[1748886996229,2.30221004,2551.8,2551.6,3.9190253]
[1748886996952,2.30221004,2551.8,2551.7,3.91895599]
[1748886997156,2.30221004,2551.8,2551.6,3.9189927]
[1748886997465,0.68025841,2551.7,2551.6,3.9189927]
[1748886997957,2.30221004,2551.8,2551.5,3.91916918]
[1748886998160,2.30221004,2551.8,2550.8,0.7812]
[1748886998161,9.37632638,2551.7,2550.8,0.7812]
[1748886998323,9.37632638,2551.7,2550.2,4.75]
[1748886998324,9.80978926,2551.6,2550.5,0.7603]
[1748886998523,8.34819337,2551.6,2551.3,3.91946942]
[1748886999060,3.26119337,2551.6,2551.3,3.91946942]
[1748886999226,8.34819337,2551.6,2551.3,3.91946942]
[1748886999627,3.26119337,2551.6,2551.3,3.91946942]
[1748887000159,1.056,2551.5,2551.3,3.91946942]
[1748887000360,3.22034846,2551.5,2551.3,3.91946942]
[1748887001159,2.16434846,2551.5,2551.3,3.91946942]
[1748887001460,2.16434846,2551.5,2551.3,3.91952162]
[1748887001633,2.16434846,2551.5,2551.2,3.91963269]
[1748887001840,6.08362299,2551.5,2551.1,3.91978705]
[1748887002041,0.55,2551.0,2549.6,3.92208434]
[1748887002365,9.37632638,2550.4,2549.9,3.92161168]
[1748887002547,4.042,2550.4,2549.3,0.8174]
[1748887002747,7.96298723,2550.4,2549.9,3.9217056]
[1748887002952,4.042,2550.4,2549.9,3.9217056]
[1748887003324,4.042,2550.4,2549.7,3.92193576]
[1748887003325,4.67524046,2550.3,2549.7,3.92193576]
[1748887003530,2.20145636,2550.2,2549.7,3.92193576]
[1748887003730,6.5167586,2550.2,2549.7,3.92193576]
[1748887004339,6.5167586,2550.2,2548.5,3.92379859]
[1748887004340,12.20149753,2550.2,2548.5,3.92379859]
[1748887004524,12.20149753,2550.2,2548.9,4.044]
[1748887004525,16.9187586,2550.2,2548.9,4.044]
[1748887004728,16.9187586,2550.2,2549.4,3.92246788]
[1748887004929,16.9187586,2550.2,2549.5,3.92231349]
[1748887005131,16.9187586,2550.2,2549.4,3.92248984]
[1748887005327,3.92172242,2549.9,2548.8,0.8035]
[1748887005554,0.7767,2550.1,2549.0,3.92308364]
[1748887005868,0.7767,2550.1,2549.9,3.92172242]
[1748887005869,1.056,2550.0,2549.9,3.92172242]
[1748887006042,1.056,2550.0,2549.3,3.92261536]
[1748887006243,1.056,2550.0,2549.7,3.92197111]
[1748887006445,1.056,2550.0,2549.7,3.92194251]
[1748887006645,1.68477412,2550.0,2549.8,3.92186844]
[1748887006835,1.68477412,2550.0,2549.7,3.9219658]
[1748887007036,0.62877412,2550.0,2549.7,3.9219658]
[1748887007232,1.70077412,2550.0,2549.6,3.92212925]
[1748887007428,1.70077412,2550.0,2549.7,3.92192713]
[1748887008140,1.70077412,2550.0,2549.6,3.92212925]
[1748887008337,1.04589245,2549.9,2549.6,3.92212925]
[1748887009790,1.04589245,2549.9,2549.4,3.92239885]
[1748887009791,1.04589245,2549.9,2549.5,3.92226096]
[1748887010381,1.04589245,2549.9,2549.4,3.92248346]
[1748887010589,9.37632638,2549.7,2549.1,0.02]
[1748887010901,1.04589245,2549.9,2549.6,3.92218387]
[1748887011051,1.6180993,2549.8,2549.6,3.92218387]
[1748887012501,1.6180993,2549.8,2549.5,3.92224869]
[1748887012668,1.6180993,2549.8,2549.6,3.92218103]
[1748887013185,0.39404117,2550.2,2550.0,3.92148918]
[1748887013356,0.798,2550.4,2549.7,3.92202473]
[1748887013984,0.798,2550.4,2550.0,3.92144198]
[1748887014465,1.19882368,2550.4,2550.1,3.92135281]
[1748887014669,1.19882368,2550.4,2550.0,3.92149058]
[1748887014992,1.44959527,2550.3,2550.1,3.92140866]
[1748887015189,1.44959527,2550.3,2550.0,3.9214889]
[1748887015855,1.44959527,2550.3,2549.6,4.67756888]
[1748887016078,1.44959527,2550.3,2550.0,3.92150576]
[1748887017125,1.44959527,2550.3,2549.8,3.9217821]
[1748887017329,1.44959527,2550.3,2550.0,3.92156752]
[1748887017734,1.19882368,2550.4,2549.8,3.92187622]
[1748887017880,1.19882368,2550.4,2550.2,3.9211118]
[1748887018732,1.19882368,2550.4,2550.1,3.92132561]
[1748887019240,0.40082368,2550.4,2550.3,3.92110732]
[1748887019398,1.073,2550.5,2550.3,3.92110732]
[1748887020319,1.47313174,2550.5,2550.3,3.92110732]
[1748887021033,2.10506491,2550.5,2550.1,3.92127319]
[1748887021235,2.10506491,2550.5,2550.2,3.92124018]
[1748887022140,11.48139129,2550.5,2550.0,3.92149824]
[1748887022339,10.16412638,2550.2,2549.7,3.92189465]
[1748887022639,14.21412638,2550.2,2550.0,3.9215517]
[1748887022818,11.10512018,2550.2,2549.4,0.8066]
[1748887023023,9.37632638,2549.9,2549.5,3.92224308]
[1748887023223,13.42632638,2549.9,2549.5,3.92224308]
[1748887023432,0.7878,2549.7,2549.1,0.02]
[1748887023643,0.7878,2549.7,2549.4,3.92246212]
[1748887023844,2.60139382,2549.7,2549.4,3.92246212]
[1748887024011,13.2985152,2549.6,2549.1,0.02]
[1748887024210,4.47243743,2549.5,2549.1,0.02]
[1748887024416,8.5254141,2549.5,2549.1,0.02]
[1748887024615,5.81986654,2549.4,2549.1,0.02]
[1748887025162,1.89737405,2549.4,2549.1,3.94293106]
[1748887025722,1.89737405,2549.4,2549.1,0.02]
[1748887026261,0.8075,2549.3,2549.1,0.02]
[1748887026773,12.4727993,2549.2,2549.1,0.02]
[1748887027069,16.52239856,2549.2,2549.1,0.02]
[1748887028242,12.59959926,2549.2,2549.1,0.02]
[1748887028449,4.04959926,2549.2,2549.1,0.02]
[1748887028757,1.4674319,2549.2,2549.1,3.94295319]
[1748887029423,0.8075,2549.5,2549.4,3.92249156]
[1748887029616,1.073,2549.8,2549.1,0.02]
[1748887029947,0.7999,2549.8,2549.1,3.94293036]
[1748887030273,1.073,2549.9,2549.8,3.92187622]
[1748887031244,10.3801811,2550.2,2549.3,3.92259983]
[1748887031443,11.24922638,2550.2,2549.5,3.92233771]
[1748887031682,11.24922638,2550.2,2550.0,3.92155156]
[1748887031867,1.53072264,2550.1,2550.0,3.92155156]
[1748887032466,9.9221311,2550.5,2550.0,3.92155156]
[1748887032467,3.2450311,2550.5,2550.4,3.92095357]
[1748887032666,7.3040311,2550.5,2550.4,3.92095357]
[1748887033072,3.2450311,2550.5,2550.4,3.92095357]
[1748887036282,2.1720311,2550.5,2550.4,3.92095357]
[1748887036847,6.2270311,2550.5,2550.4,3.92095357]
[1748887037167,8.69466685,2550.5,2550.4,3.92095357]
[1748887038956,4.63966685,2550.5,2550.4,3.92095357]
[1748887040161,4.63966685,2550.5,2550.3,3.92102861]
[1748887041193,4.63966685,2550.5,2550.4,3.92095357]
[1748887041903,4.63966685,2550.5,2550.2,3.92122284]
[1748887041904,4.63966685,2550.5,2550.3,3.92102691]
[1748887042060,4.63966685,2550.5,2550.3,3.92110732]
[1748887042264,4.63966685,2550.5,2550.4,3.92095357]
[1748887044759,4.63966685,2550.5,2550.3,3.92102325]
[1748887045086,1.77616669,2550.4,2550.3,3.92102325]
[1748887049269,4.63966685,2550.5,2550.4,3.92095357]
[1748887050508,4.63966685,2550.5,2550.3,3.92103038]
[1748887050696,4.63966685,2550.5,2550.4,3.92095357]
[1748887051389,3.83976685,2550.5,2550.4,3.92095357]
[1748887051600,0.97199936,2550.5,2550.4,3.92095357]
[1748887051798,0.8208,2551.1,2550.9,3.92003963]
[1748887052977,0.8208,2551.1,2551.0,3.92003136]
[1748887053481,0.8208,2551.1,2550.8,3.92019339]
[1748887053683,0.8208,2551.1,2550.9,3.92014904]
[1748887054021,0.64180343,2551.0,2550.9,3.92014904]
[1748887054219,1.02956413,2551.0,2550.9,3.92014904]
[1748887054920,0.3877607,2551.0,2550.9,3.92014904]
[1748887055117,13.59423432,2551.2,2551.1,3.91987769]
[1748887057122,9.55523432,2551.2,2551.1,3.91987769]
[1748887057323,1.55523432,2551.2,2551.1,3.91987769]
[1748887058091,1.067,2551.2,2551.1,3.91987769]
[1748887061338,11.7407316,2551.2,2550.1,3.92128806]
[1748887061638,11.7407316,2551.2,2551.1,3.91987769]
[1748887061850,11.7407316,2551.2,2551.0,3.91995167]
[1748887062146,1.067,2551.2,2551.1,3.91987769]
[1748887067041,0.38719792,2551.3,2551.2,3.91972405]
[1748887067346,0.8063,2551.4,2551.3,3.91957041]
[1748887067347,4.8433,2551.4,2551.3,3.91957041]
[1748887067552,4.037,2551.4,2551.3,3.91957041]
[1748887068638,4.037,2551.5,2551.4,3.91941542]
[1748887068850,0.38235858,2551.5,2551.4,3.91941542]
[1748887069038,1.067,2551.6,2551.5,3.91926317]
[1748887069673,10.35307306,2551.9,2551.5,3.91922837]
[1748887069875,5.095,2551.8,2551.7,3.91895599]
[1748887070120,5.095,2551.8,2551.6,3.91903767]
[1748887070893,1.058,2551.8,2551.6,3.91903767]
[1748887071092,5.094,2551.8,2551.6,3.91903767]
[1748887071392,5.49140835,2551.8,2551.6,3.91903767]
[1748887071696,1.69347887,2551.7,2551.4,3.91934361]
[1748887071894,1.69347887,2551.7,2551.5,3.91913355]
[1748887072190,5.49140835,2551.8,2551.6,3.91910957]
[1748887072486,5.49040835,2551.8,2551.7,3.91895599]
[1748887073255,0.02,2551.9,2551.8,3.91880241]
[1748887073456,0.02,2551.9,2551.8,4.67300241]
[1748887073660,0.02,2551.9,2551.8,5.97478086]
[1748887073878,0.02,2551.9,2551.8,5.93559537]
[1748887076997,0.02,2551.9,2551.8,13.97477919]
[1748887077203,0.02,2551.9,2551.8,13.93559537]
[1748887079618,0.02,2551.9,2551.8,14.48559537]
[1748887082721,0.02,2551.9,2551.8,18.67559537]
[1748887083532,0.02,2551.9,2551.8,14.63559537]
[1748887083683,0.02,2551.9,2551.8,18.67459537]
[1748887083882,0.02,2551.9,2551.8,17.97459537]
[1748887084983,0.02,2551.9,2551.8,13.93559537]
[1748887085308,0.02,2551.9,2551.8,17.97459537]
[1748887085495,0.02,2551.9,2551.8,18.52459537]
[1748887085833,0.02,2551.9,2551.8,17.97459537]
[1748887087138,0.02,2551.9,2551.8,13.93559537]
[1748887087428,0.02,2551.9,2551.8,3.91880241]
[1748887088524,0.7575,2551.8,2551.6,3.9190224]
[1748887088720,1.057,2551.7,2551.5,3.91924199]
[1748887088993,1.057,2551.7,2551.2,3.91957474]
[1748887089219,1.057,2551.7,2550.8,3.9202256]
[1748887089220,1.057,2551.7,2551.1,3.91981722]
[1748887089415,0.8225,2551.5,2551.1,3.91978849]
[1748887089790,0.8225,2551.5,2550.8,3.92033871]
[1748887089991,0.8225,2551.5,2551.3,3.91949754]
[1748887090191,0.8225,2551.5,2551.2,3.91966397]
[1748887090694,0.8225,2551.5,2551.2,3.91962817]
[1748887090993,0.23334726,2551.4,2551.2,3.91962817]
[1748887091392,9.60967364,2551.4,2550.8,3.92020568]
[1748887091629,0.23334726,2551.4,2550.4,0.7923]